bitfinex/quotes_BTCUSD_20241119
["timestamp","ask_amount","ask_price","bid_price","bid_amount"]
[1731999998984,0.2653422,92064.0,92063.0,0.07489175]
[1731999999430,0.2643422,92064.0,92063.0,0.06789175]
[1731999999642,0.2653422,92064.0,92063.0,0.06789175]
[1732000000310,0.25886558,92064.0,92063.0,0.06789175]
[1732000000753,0.21162,92064.0,92063.0,0.06789175]
[1732000001006,0.24416487,92064.0,92063.0,0.06789175]
[1732000001223,0.21162,92064.0,92063.0,0.06789175]
[1732000001442,0.2441659,92064.0,92063.0,0.06789175]
[1732000001659,0.21162,92064.0,92063.0,0.06789175]
[1732000003225,0.21062,92064.0,92063.0,0.06789175]
[1732000003675,0.29342,92064.0,92063.0,0.06789175]
[1732000004148,0.29142,92064.0,92063.0,0.06789175]
[1732000004366,0.29642,92064.0,92063.0,0.08689175]
[1732000004588,0.29342,92064.0,92063.0,0.06789175]
[1732000004802,0.29442,92064.0,92063.0,0.08389175]
[1732000005041,0.29542,92064.0,92063.0,0.08389175]
[1732000005265,0.29442,92064.0,92063.0,0.0017086]
[1732000005484,0.29442,92064.0,92030.0,0.0465]
[1732000005485,0.108655,92034.0,92033.0,0.16293102]
[1732000005923,0.0791,92037.0,92018.0,0.10906255]
[1732000005924,0.108673,92019.0,92018.0,0.10906255]
[1732000006818,0.108673,92019.0,92005.0,0.0828]
[1732000006819,0.10868,92013.0,92012.0,0.01]
[1732000007032,0.16293102,92024.0,92012.0,0.10906255]
[1732000007247,0.10868,92013.0,92012.0,0.01]
[1732000007471,0.108676,92016.0,92012.0,0.01]
[1732000007694,0.16293102,92024.0,92012.0,0.01]
[1732000007927,0.10868,92013.0,92012.0,0.01]
[1732000008382,0.108686,92008.0,92007.0,0.0017088]
[1732000009717,0.108686,92008.0,92007.0,0.0117088]
[1732000009940,0.110686,92008.0,92007.0,0.0317088]
[1732000010431,0.002,92008.0,92007.0,0.0317088]
[1732000010649,0.110686,92008.0,92007.0,0.0317088]
[1732000011093,0.110686,92008.0,92007.0,0.0197088]
[1732000011314,0.110686,92008.0,92007.0,0.0327088]
[1732000011587,0.109686,92008.0,92007.0,0.0147088]
[1732000011814,0.111686,92008.0,92007.0,0.0197088]
[1732000012023,0.108686,92008.0,92007.0,0.0017088]
[1732000012235,0.111686,92008.0,92007.0,0.0317088]
[1732000012456,0.003,92008.0,92007.0,0.0317088]
[1732000012672,0.111686,92008.0,92007.0,0.0317088]
[1732000013348,0.003,92008.0,92007.0,0.0317088]
[1732000013572,0.111686,92008.0,92007.0,0.0317088]
[1732000013786,0.003,92008.0,92007.0,0.0317088]
[1732000014020,0.111686,92008.0,92007.0,0.0317088]
[1732000021456,0.110686,92008.0,92007.0,0.0187088]
[1732000021680,0.109686,92008.0,92007.0,0.0137088]
[1732000021881,0.111686,92008.0,92007.0,0.0317088]
[1732000023545,0.003,92008.0,92007.0,0.0317088]
[1732000023747,0.111686,92008.0,92007.0,0.0317088]
[1732000027353,0.04364948,92015.0,92007.0,0.0317088]
[1732000027354,0.217367,92010.0,92007.0,0.0317088]
[1732000027592,0.217367,92010.0,92007.0,0.0017088]
[1732000027593,0.108686,92008.0,92007.0,0.0017088]
[1732000027821,0.109686,92008.0,92007.0,0.0067088]
[1732000028037,0.111686,92008.0,92007.0,0.0227088]
[1732000028240,0.108686,92008.0,92007.0,0.0017088]
[1732000028663,0.108686,92008.0,92007.0,0.0247088]
[1732000028876,0.108686,92008.0,92007.0,0.0107088]
[1732000029086,0.108686,92008.0,92007.0,0.0017088]
[1732000029298,0.110686,92008.0,92007.0,0.0157088]
[1732000029521,0.111686,92008.0,92007.0,0.0257088]
[1732000030603,0.110686,92008.0,92007.0,0.0157088]
[1732000031038,0.134686,92008.0,92007.0,0.0257088]
[1732000031239,0.182686,92008.0,92007.0,0.0257088]
[1732000031465,0.38074855,92008.0,92007.0,0.0257088]
[1732000031684,0.46112554,92008.0,92007.0,0.0257088]
[1732000032154,0.46312554,92008.0,92007.0,0.0257088]
[1732000032393,0.56012554,92008.0,92007.0,0.0017088]
[1732000032634,0.56012554,92008.0,92007.0,0.0018828]
[1732000032857,0.56112554,92008.0,92007.0,0.0068828]
[1732000034029,0.56012554,92008.0,92007.0,0.0018828]
[1732000034235,0.60681377,92008.0,92007.0,0.0018828]
[1732000034466,0.60781377,92008.0,92007.0,0.0108828]
[1732000034696,0.60681377,92008.0,92007.0,0.0058828]
[1732000034926,0.62581377,92008.0,92007.0,0.0038828]
[1732000035143,0.63481377,92008.0,92007.0,0.0048828]
[1732000036671,0.143694,92001.0,92000.0,0.2115298]
[1732000036912,0.61962177,92001.0,92000.0,0.15170727]
[1732000038115,0.61962177,92001.0,92000.0,0.15270727]
[1732000038116,0.62462177,92001.0,92000.0,0.15270727]
[1732000038323,0.61962177,92001.0,92000.0,0.15170727]
[1732000038779,0.63662177,92001.0,92000.0,0.15370727]
[1732000038981,0.62162177,92001.0,92000.0,0.15170727]
[1732000039201,0.63462177,92001.0,92000.0,0.15370727]
[1732000039408,0.66842785,92001.0,92000.0,0.15370727]
[1732000039627,0.67542785,92001.0,92000.0,0.15470727]
[1732000040280,0.69721055,92001.0,92000.0,0.15470727]
[1732000041435,0.69721055,92001.0,91988.0,0.00171]
[1732000041436,0.033,91989.0,91988.0,0.00171]
[1732000041649,0.47717055,91989.0,91988.0,0.00171]
[1732000042405,0.33546255,91989.0,91988.0,0.00171]
[1732000042612,0.44517055,91989.0,91988.0,0.00371]
[1732000043035,0.44417055,91989.0,91988.0,0.00171]
[1732000043482,0.44817055,91989.0,91988.0,0.00271]
[1732000043944,0.50435824,91989.0,91988.0,0.00271]
[1732000044174,0.49235824,91989.0,91988.0,0.00271]
[1732000044390,0.51535824,91989.0,91988.0,0.00271]
[1732000044600,0.52335824,91989.0,91988.0,0.00171]
[1732000045064,0.52835824,91989.0,91988.0,0.00271]
[1732000045714,0.53035824,91989.0,91988.0,0.00271]
[1732000046225,0.52835824,91989.0,91988.0,0.00271]
[1732000047374,0.53971291,91989.0,91988.0,0.00271]
[1732000047605,0.53971291,91989.0,91972.0,0.000127]
[1732000047606,0.108727,91973.0,91972.0,0.000127]
[1732000047849,0.59775477,91973.0,91972.0,0.000127]
[1732000048549,0.59775477,91973.0,91972.0,0.009127]
[1732000048803,0.60275477,91973.0,91972.0,0.009127]
[1732000049038,0.59775477,91973.0,91972.0,0.000127]
[1732000049264,0.208751,91953.0,91952.0,0.0017084]
[1732000049511,0.33581622,91953.0,91952.0,0.0017084]
[1732000049754,0.46987877,91953.0,91952.0,0.0017084]
[1732000049991,0.47987877,91953.0,91952.0,0.0017084]
[1732000050221,0.511274,91953.0,91952.0,0.0017084]
[1732000050867,0.593974,91953.0,91952.0,0.0017084]
[1732000051112,0.72303922,91953.0,91952.0,0.0017084]
[1732000051364,0.69164399,91953.0,91952.0,0.0017084]
[1732000052261,0.69064399,91953.0,91952.0,0.0047084]
[1732000052757,0.68964399,91953.0,91952.0,0.0017084]
[1732000052989,0.69464399,91953.0,91952.0,0.0027084]
[1732000053213,0.74364399,91953.0,91952.0,0.0027084]
[1732000053452,0.77710086,91953.0,91952.0,4e-07]
[1732000053689,1.03466989,91953.0,91952.0,4e-07]
[1732000054227,0.373866,91940.0,91939.0,0.0017086]
[1732000054433,0.64246459,91940.0,91939.0,0.0017086]
[1732000054669,0.291877,91931.0,91930.0,0.0017088]
[1732000054941,0.58347559,91931.0,91930.0,0.0017088]
[1732000055143,0.75087232,91931.0,91930.0,0.0017088]
[1732000055400,0.75087232,91931.0,91925.0,0.0017086]
[1732000055401,0.118783,91926.0,91925.0,0.0017086]
[1732000055621,0.208794,91916.0,91911.0,0.0004]
[1732000055838,0.46992177,91916.0,91911.0,0.0004]
[1732000056054,0.55102177,91916.0,91911.0,0.0004]
[1732000056557,0.54902177,91916.0,91911.0,0.0004]
[1732000056981,0.55102177,91916.0,91911.0,0.0004]
[1732000057193,0.002,91914.0,91911.0,0.0004]
[1732000057453,0.231799,91912.0,91911.0,0.0004]
[1732000057726,0.23206255,91912.0,91911.0,0.0004]
[1732000057916,0.34086155,91912.0,91911.0,0.0004]
[1732000059076,0.34279655,91912.0,91911.0,0.0004]
[1732000059313,0.34247029,91912.0,91911.0,0.0004]
[1732000059542,0.002,91912.0,91911.0,0.0004]
[1732000059758,0.110799,91912.0,91911.0,0.0004]
[1732000060200,0.108799,91912.0,91911.0,0.0004]
[1732000061087,0.110799,91912.0,91911.0,0.0004]
[1732000061329,0.108799,91912.0,91911.0,0.0004]
[1732000061567,0.112799,91912.0,91911.0,0.0004]
[1732000062014,0.110799,91912.0,91911.0,0.0004]
[1732000062457,0.112799,91912.0,91911.0,0.0004]
[1732000062709,0.004,91912.0,91911.0,0.1192]
[1732000063563,0.002,91912.0,91911.0,0.0104]
[1732000064004,0.108794,91917.0,91911.0,0.0121104]
[1732000064206,0.003,91912.0,91911.0,0.0121104]
[1732000064448,0.2335,91918.0,91911.0,0.0121104]
[1732000064449,0.108797,91914.0,91911.0,0.0121104]
[1732000064658,0.003,91912.0,91911.0,0.0121104]
[1732000064875,0.114799,91912.0,91911.0,0.0021104]
[1732000065326,0.111799,91912.0,91911.0,0.0021104]
[1732000065955,0.108799,91912.0,91911.0,0.0021104]
[1732000066164,0.108799,91912.0,91911.0,0.0091104]
[1732000066405,0.114799,91912.0,91911.0,0.0091104]
[1732000066629,0.111799,91912.0,91911.0,0.0021104]
[1732000066852,0.003,91912.0,91911.0,0.0121104]
[1732000067061,0.005,91912.0,91911.0,0.0191104]
[1732000067746,0.003,91912.0,91911.0,0.0121104]
[1732000067956,0.111799,91912.0,91911.0,0.0121104]
[1732000068165,0.003,91912.0,91911.0,0.0021104]
[1732000068380,0.108799,91912.0,91911.0,0.0021104]
[1732000068578,0.110799,91912.0,91911.0,0.0061104]
[1732000069012,0.108799,91912.0,91911.0,0.0021104]
[1732000069454,0.113799,91912.0,91911.0,0.004]
[1732000069911,0.005,91912.0,91893.0,0.19809365]
[1732000070133,0.108806,91906.0,91900.0,0.01]
[1732000070366,0.217608,91908.0,91893.0,0.19809365]
[1732000070573,0.16293102,91909.0,91900.0,0.01]
[1732000070788,0.108807,91906.0,91900.0,0.01]
[1732000071220,0.108808,91905.0,91900.0,0.01]
[1732000072315,0.217611,91907.0,91900.0,0.01]
[1732000072536,0.16293102,91909.0,91900.0,0.01]
[1732000072749,0.16293102,91909.0,91900.0,0.001]
[1732000072750,0.003,91905.0,91900.0,0.001]
[1732000073004,0.108812,91901.0,91900.0,0.001]
[1732000073219,0.108812,91901.0,91895.0,0.108819]
[1732000073423,0.10881,91903.0,91900.0,0.011]
[1732000073650,0.003,91905.0,91900.0,0.011]
[1732000074091,0.108812,91901.0,91900.0,0.011]
[1732000074347,0.003,91901.0,91900.0,0.011]
[1732000074566,0.003,91901.0,91900.0,0.001]
[1732000074773,0.003,91901.0,91899.0,0.01]
[1732000074995,0.006,91901.0,91900.0,0.001]
[1732000075684,0.003,91901.0,91900.0,0.001]
[1732000075893,0.217608,91908.0,91900.0,0.0017104]
[1732000076113,0.003,91901.0,91900.0,0.0017104]
[1732000076544,0.006,91901.0,91900.0,0.0017104]
[1732000076756,0.003,91901.0,91900.0,0.0017104]
[1732000078039,0.003,91901.0,91900.0,0.0027104]
[1732000078663,0.003,91901.0,91900.0,0.0017104]
[1732000078874,0.006,91901.0,91900.0,0.0027104]
[1732000079769,0.006,91901.0,91900.0,0.1115234]
[1732000079984,0.006,91901.0,91900.0,0.0027104]
[1732000081759,0.006,91901.0,91900.0,0.1115234]
[1732000082196,0.006,91901.0,91900.0,0.0027104]
[1732000082422,0.006,91901.0,91900.0,0.1115234]
[1732000084867,0.006,91901.0,91900.0,0.29578595]
[1732000085075,0.006,91901.0,91900.0,0.34458595]
[1732000085299,0.006,91901.0,91900.0,0.35458595]
[1732000087056,0.006,91901.0,91900.0,0.36458595]
[1732000087512,0.09393102,91915.0,91914.0,0.108797]
[1732000088148,0.16293102,91925.0,91920.0,0.108789]
[1732000088387,0.16293102,91925.0,91908.0,0.01]
[1732000088388,0.16293102,91925.0,91924.0,0.108785]
[1732000088830,0.0821,91936.0,91922.0,0.217575]
[1732000089056,0.0821,91936.0,91923.0,0.108785]
[1732000089057,0.108777,91931.0,91923.0,0.108785]
[1732000089286,0.108777,91931.0,91922.0,0.217575]
[1732000089287,0.0821,91936.0,91913.0,0.12706522]
[1732000089499,0.002,91925.0,91919.0,0.0477]
[1732000089723,0.16293102,91935.0,91921.0,0.217578]
[1732000089941,0.16293102,91925.0,91924.0,0.108784]
[1732000090158,0.003,91931.0,91925.0,0.108783]
[1732000090367,0.108775,91933.0,91926.0,0.108782]
[1732000090583,0.27170302,91935.0,91926.0,0.108782]
[1732000090824,0.108773,91934.0,91927.0,0.108781]
[1732000091253,0.108773,91934.0,91923.0,0.217573]
[1732000091254,0.002,91931.0,91925.0,0.025]
[1732000091717,0.108773,91934.0,91927.0,0.10878]
[1732000091939,0.003,91925.0,91924.0,0.108785]
[1732000092164,0.108775,91933.0,91924.0,0.108785]
[1732000092368,0.326323,91933.0,91924.0,0.108785]
[1732000092612,0.326323,91933.0,91925.0,0.027]
[1732000092613,0.003,91931.0,91925.0,0.027]
[1732000092819,0.108778,91930.0,91923.0,0.108786]
[1732000093230,0.003,91925.0,91924.0,0.027]
[1732000093471,0.108778,91930.0,91924.0,0.108785]
[1732000093683,0.108778,91930.0,91925.0,0.027]
[1732000094323,0.108778,91930.0,91927.0,0.008]
[1732000094753,0.108778,91930.0,91925.0,0.027]
[1732000094981,0.217549,91933.0,91925.0,0.007]
[1732000095181,0.108775,91933.0,91926.0,0.108782]
[1732000095815,0.16293102,91935.0,91920.0,0.21758]
[1732000096050,0.16293102,91935.0,91898.0,0.4116843]
[1732000096051,0.111775,91933.0,91926.0,0.108783]
[1732000096949,0.112775,91933.0,91926.0,0.108783]
[1732000097391,0.004,91933.0,91925.0,0.016]
[1732000097599,0.108776,91932.0,91926.0,0.024]
[1732000098046,0.006,91933.0,91926.0,0.024]
[1732000098047,0.108778,91931.0,91926.0,0.024]
[1732000098273,0.108778,91931.0,91926.0,0.039]
[1732000098736,0.108778,91931.0,91926.0,0.024]
[1732000098963,0.108778,91931.0,91926.0,0.015]
[1732000099167,0.001,91932.0,91926.0,0.123782]
[1732000099378,0.109776,91932.0,91926.0,0.123782]
[1732000099603,0.109776,91932.0,91926.0,0.015]
[1732000099873,0.003,91931.0,91926.0,0.039]
[1732000100083,0.108781,91927.0,91926.0,0.015]
[1732000100293,0.10878,91929.0,91926.0,0.039]
[1732000100757,0.10878,91929.0,91923.0,0.108786]
[1732000100998,0.10878,91929.0,91926.0,0.015]
[1732000101217,0.108781,91927.0,91926.0,0.015]
[1732000101643,0.108784,91925.0,91919.0,0.108791]
[1732000101859,0.108784,91925.0,91923.0,0.019]
[1732000102345,0.108784,91926.0,91919.0,0.108791]
[1732000102755,0.326356,91924.0,91918.0,0.01]
[1732000102970,0.16293102,91925.0,91918.0,0.01]
[1732000102971,0.108788,91922.0,91918.0,0.01]
[1732000103406,0.108789,91921.0,91918.0,0.01]
[1732000103877,0.217573,91923.0,91918.0,0.01]
[1732000104112,0.217575,91922.0,91918.0,0.024]
[1732000104336,0.108791,91920.0,91918.0,0.024]
[1732000104551,0.108791,91919.0,91918.0,0.024]
[1732000105630,0.187691,91919.0,91918.0,0.048]
[1732000105837,0.187691,91919.0,91918.0,0.024]
[1732000106038,0.187691,91919.0,91900.0,0.0017104]
[1732000106039,0.23206081,91919.0,91900.0,0.0017104]
[1732000106270,0.108812,91901.0,91900.0,0.0017104]
[1732000107380,0.0768,91909.0,91900.0,0.0017104]
[1732000107643,0.003,91901.0,91900.0,0.1345234]
[1732000107861,0.108805,91908.0,91901.0,0.108811]
[1732000108069,0.108806,91907.0,91900.0,0.0277104]
[1732000108293,0.0768,91909.0,91900.0,0.0277104]
[1732000108516,0.0768,91909.0,91900.0,0.0017104]
[1732000108517,0.108809,91904.0,91900.0,0.0017104]
[1732000108985,0.108805,91908.0,91900.0,0.1105234]
[1732000109204,0.003,91901.0,91900.0,0.0357104]
[1732000109416,0.002,91901.0,91900.0,0.0227104]
[1732000109644,0.0768,91909.0,91900.0,0.0017104]
[1732000109859,0.108812,91901.0,91900.0,0.0237104]
[1732000110543,0.108812,91901.0,91900.0,0.0017104]
[1732000110966,0.111812,91901.0,91900.0,0.0427104]
[1732000111403,0.111812,91901.0,91900.0,0.0237104]
[1732000111854,0.112812,91901.0,91900.0,0.0377104]
[1732000112777,0.001,91901.0,91900.0,0.0157104]
[1732000113006,0.001,91901.0,91900.0,0.1245234]
[1732000113238,0.004,91901.0,91900.0,0.1465234]
[1732000116879,0.004,91901.0,91900.0,0.0377104]
[1732000117330,0.0768,91909.0,91900.0,0.0377104]
[1732000117781,0.108805,91907.0,91900.0,0.0377104]
[1732000118209,0.108805,91907.0,91900.0,0.0237104]
[1732000118436,0.108805,91907.0,91900.0,0.0377104]
[1732000119130,0.108805,91907.0,91900.0,0.0157104]
[1732000119350,0.108805,91907.0,91900.0,0.0387104]
[1732000119576,0.108805,91907.0,91900.0,0.0157104]
[1732000119794,0.111805,91907.0,91900.0,0.0387104]
[1732000120691,0.111805,91907.0,91900.0,0.1335224]
[1732000120917,0.003,91907.0,91900.0,0.0247104]
[1732000121135,0.003,91907.0,91906.0,0.108806]
[1732000121136,0.004,91907.0,91906.0,0.108806]
[1732000121861,0.003,91907.0,91906.0,0.24004339]
[1732000122090,0.005,91907.0,91906.0,0.23786855]
[1732000122996,0.002,91907.0,91906.0,0.23786855]
[1732000123215,0.002,91907.0,91906.0,0.26586855]
[1732000123662,0.061575,91915.0,91914.0,0.108797]
[1732000125454,0.062575,91915.0,91914.0,0.123797]
[1732000125900,0.063575,91915.0,91914.0,0.151797]
[1732000126369,0.063575,91915.0,91914.0,0.45342477]
[1732000126585,0.063575,91915.0,91914.0,0.52952477]
[1732000127028,0.063575,91915.0,91914.0,0.62952477]
[1732000127698,0.062575,91915.0,91914.0,0.61452477]
[1732000127933,0.062575,91915.0,91914.0,0.62952477]
[1732000128620,0.02845086,91915.0,91914.0,0.60352477]
[1732000128833,0.00186724,91915.0,91914.0,0.63182143]
[1732000129067,0.00186724,91915.0,91914.0,0.65982143]
[1732000129301,0.00186724,91915.0,91914.0,0.63182143]
[1732000129527,0.00186724,91915.0,91914.0,0.65982143]
[1732000129991,0.00186724,91915.0,91914.0,0.62982143]
[1732000130215,0.00186724,91915.0,91914.0,0.8282707]
[1732000130437,0.00186724,91915.0,91914.0,0.68282143]
[1732000130669,0.00186724,91915.0,91914.0,0.7547747]
[1732000130921,0.00186724,91915.0,91914.0,0.7807747]
[1732000131149,0.00186724,91915.0,91914.0,0.68382143]
[1732000131371,0.00186724,91915.0,91914.0,0.68817143]
[1732000132307,0.00186724,91915.0,91914.0,0.69017143]
[1732000132532,0.16293102,91932.0,91931.0,0.228777]
[1732000132533,0.09236416,91932.0,91931.0,0.228777]
[1732000132746,0.09236416,91932.0,91931.0,0.33783955]
[1732000133223,0.081,91953.0,91948.0,0.108757]
[1732000133887,0.081,91953.0,91944.0,0.217521]
[1732000134112,0.081,91953.0,91936.0,0.02]
[1732000134387,0.081,91953.0,91952.0,0.108752]
[1732000134610,0.083,91965.0,91962.0,0.10874]
[1732000134836,0.16293102,91959.0,91958.0,0.108745]
[1732000135052,0.083,91965.0,91950.0,0.217509]
[1732000135273,0.083,91965.0,91962.0,0.10874]
[1732000135750,0.083,91965.0,91959.0,0.217486]
[1732000135988,0.083,91965.0,91955.0,0.217496]
[1732000136203,0.083,91965.0,91960.0,0.217484]
[1732000136455,0.083,91965.0,91963.0,0.108738]
[1732000136680,0.087,91965.0,91963.0,0.108738]
[1732000136909,0.092,91965.0,91963.0,0.108738]
[1732000137127,0.083,91965.0,91963.0,0.108738]
[1732000137350,0.087,91965.0,91963.0,0.108738]
[1732000137791,0.083,91965.0,91963.0,0.108738]
[1732000138009,0.0838552,91965.0,91963.0,0.108738]
[1732000138242,0.0878552,91965.0,91963.0,0.108738]
[1732000138465,0.0878552,91965.0,91960.0,0.217484]
[1732000138466,0.0888552,91965.0,91961.0,0.217483]
[1732000138684,0.0888552,91965.0,91963.0,0.108738]
[1732000138908,0.0878552,91965.0,91963.0,0.108738]
[1732000139827,0.0888552,91965.0,91963.0,0.109738]
[1732000140048,0.1935922,91965.0,91963.0,0.001]
[1732000140277,0.0868552,91965.0,91963.0,0.001]
[1732000140510,0.108738,91964.0,91963.0,0.001]
[1732000140722,0.0848552,91965.0,91963.0,0.001]
[1732000141206,0.0868552,91965.0,91963.0,0.001]
[1732000141646,0.0858552,91965.0,91961.0,0.108741]
[1732000141866,0.002,91964.0,91963.0,0.001]
[1732000142328,0.0858552,91965.0,91961.0,0.108741]
[1732000142553,0.0858552,91965.0,91963.0,0.001]
[1732000142769,0.0838552,91965.0,91960.0,0.108742]
[1732000142989,0.0868552,91965.0,91961.0,0.108741]
[1732000143216,0.0868552,91965.0,91963.0,0.001]
[1732000143217,0.002,91964.0,91963.0,0.001]
[1732000143433,0.0868552,91965.0,91961.0,0.108741]
[1732000143434,0.0838552,91965.0,91961.0,0.108741]
[1732000143877,0.0868552,91965.0,91961.0,0.108741]
[1732000144316,0.0838552,91965.0,91961.0,0.108741]
[1732000145029,0.0858552,91965.0,91961.0,0.108741]
[1732000145252,0.0838552,91965.0,91961.0,0.108741]
[1732000145469,0.0838552,91965.0,91961.0,0.124741]
[1732000145684,0.0868552,91965.0,91961.0,0.124741]
[1732000145952,0.0868552,91965.0,91961.0,0.016]
[1732000146196,0.0838552,91965.0,91964.0,0.108738]
[1732000146657,0.0838552,91965.0,91963.0,0.108738]
[1732000147395,0.0088552,91965.0,91964.0,0.002]
[1732000148270,0.0088552,91965.0,91964.0,0.121738]
[1732000149145,0.0088552,91965.0,91964.0,0.119738]
[1732000149578,0.0008552,91965.0,91964.0,0.119738]
[1732000150255,0.0008552,91965.0,91964.0,0.121738]
[1732000155414,0.0008552,91965.0,91964.0,0.013]
[1732000156070,0.0008552,91965.0,91964.0,0.121738]
[1732000156285,0.02113564,91965.0,91964.0,0.121738]
[1732000156941,0.0008552,91965.0,91964.0,0.121738]
[1732000157823,0.0008552,91965.0,91964.0,0.013]
[1732000158042,0.0008552,91965.0,91964.0,0.121738]
[1732000158261,0.0008552,91965.0,91964.0,0.013]
[1732000158480,0.0008552,91965.0,91964.0,0.121738]
[1732000158711,0.0008552,91965.0,91964.0,0.013]
[1732000159372,0.1045892,91968.0,91964.0,0.013]
[1732000159802,0.108733,91969.0,91964.0,0.013]
[1732000160506,0.0008552,91970.0,91964.0,0.013]
[1732000160734,0.0008552,91970.0,91967.0,0.108733]
[1732000161186,0.0008552,91970.0,91965.0,0.108736]
[1732000161882,0.0008552,91970.0,91964.0,0.002]
[1732000162093,0.0008552,91970.0,91965.0,0.108737]
[1732000162307,0.0008552,91970.0,91965.0,0.109737]
[1732000162526,0.0029552,91973.0,91967.0,0.005]
[1732000162821,0.0008549,91969.0,91966.0,0.108734]
[1732000164798,0.0008549,91969.0,91967.0,0.005]
[1732000165025,0.0008549,91969.0,91966.0,0.108734]
[1732000165255,0.0008549,91969.0,91966.0,0.115734]
[1732000166130,0.0008549,91969.0,91966.0,0.108734]
[1732000166366,0.0008549,91969.0,91966.0,0.115734]
[1732000167889,0.0008549,91969.0,91966.0,0.108734]
[1732000168121,0.0008549,91969.0,91966.0,0.115734]
[1732000168341,0.0008549,91969.0,91966.0,0.108734]
[1732000168782,0.0008549,91969.0,91966.0,0.124734]
[1732000169230,0.0008549,91969.0,91966.0,0.016]
[1732000169449,0.0008549,91969.0,91966.0,0.124735]
[1732000170108,0.0008549,91969.0,91966.0,0.016]
[1732000170304,0.0008549,91969.0,91968.0,0.108733]
[1732000170769,0.0008549,91969.0,91966.0,0.016]
[1732000170985,0.0008549,91969.0,91967.0,0.108734]
[1732000171420,0.1095869,91969.0,91966.0,0.013]
[1732000171656,0.0008549,91969.0,91964.0,0.108737]
[1732000172099,0.0008549,91969.0,91968.0,0.009]
[1732000172318,0.0008549,91969.0,91965.0,0.108736]
[1732000172548,0.0008549,91969.0,91967.0,0.013]
[1732000173016,0.0008549,91969.0,91967.0,0.002]
[1732000173885,0.0008549,91969.0,91961.0,0.217483]
[1732000174110,0.02036328,91968.0,91964.0,0.021]
[1732000174328,0.02036328,91967.0,91959.0,0.227487]
[1732000174536,0.02036328,91966.0,91959.0,0.227487]
[1732000174754,0.02036328,91965.0,91964.0,0.108737]
[1732000174974,0.02036328,91965.0,91961.0,0.108741]
[1732000175190,0.02036328,91964.0,91961.0,0.108741]
[1732000175638,0.02036328,91963.0,91960.0,0.108742]
[1732000175863,0.02036328,91963.0,91962.0,0.10874]
[1732000176077,0.0008546,91968.0,91962.0,0.108739]
[1732000176291,0.0008546,91968.0,91963.0,0.108739]
[1732000176760,0.0008546,91968.0,91959.0,0.019]
[1732000176761,0.0008546,91968.0,91961.0,0.108741]
[1732000176972,0.0008546,91968.0,91956.0,0.217495]
[1732000176973,0.0467,91967.0,91956.0,0.217495]
[1732000177187,0.108736,91966.0,91961.0,0.006]
[1732000177403,0.0467,91967.0,91961.0,0.006]
[1732000177616,0.108733,91968.0,91960.0,0.108742]
[1732000178094,0.001,91964.0,91961.0,0.017]
[1732000178313,0.108734,91967.0,91961.0,0.004]
[1732000178533,0.001,91967.0,91961.0,0.013]
[1732000178970,0.108734,91967.0,91960.0,0.005]
[1732000179200,0.108734,91967.0,91960.0,0.02]
[1732000179419,0.1095869,91969.0,91961.0,0.108741]
[1732000179637,0.108734,91968.0,91960.0,0.005]
[1732000179855,0.108734,91967.0,91960.0,0.005]
[1732000180089,0.108734,91967.0,91959.0,0.118743]
[1732000180312,0.108734,91967.0,91960.0,0.108742]
[1732000180554,0.108734,91967.0,91961.0,0.006]
[1732000180776,0.109734,91967.0,91961.0,0.024]
[1732000180966,0.109734,91967.0,91961.0,0.018]
[1732000181223,0.108738,91964.0,91960.0,0.007]
[1732000181437,0.108735,91966.0,91960.0,0.007]
[1732000181663,0.108735,91966.0,91959.0,0.01]
[1732000181879,0.108735,91966.0,91959.0,0.118743]
[1732000182093,0.108735,91966.0,91961.0,0.018]
[1732000182303,0.108735,91966.0,91961.0,0.006]
[1732000182729,0.002,91964.0,91961.0,0.006]
[1732000183860,0.002,91964.0,91960.0,0.02]
[1732000184489,0.108736,91966.0,91959.0,0.01]
[1732000185112,0.108736,91966.0,91961.0,0.018]
[1732000185324,0.001,91966.0,91961.0,0.024]
[1732000185629,0.0008549,91969.0,91961.0,0.006]
[1732000185845,0.001,91966.0,91962.0,0.10874]
[1732000186061,0.0008549,91969.0,91962.0,0.10874]
[1732000186280,0.0008549,91969.0,91961.0,0.114741]
[1732000186498,0.0008549,91969.0,91961.0,0.0017092]
[1732000186728,0.0008549,91969.0,91961.0,0.1104502]
[1732000187370,0.1095869,91969.0,91961.0,0.1104502]
[1732000187585,0.0008549,91969.0,91961.0,0.0077092]
[1732000187797,0.108733,91968.0,91961.0,0.0077092]
[1732000188016,0.10874,91962.0,91961.0,0.0077092]
[1732000188251,0.18917881,91962.0,91961.0,0.0257092]
[1732000188474,0.18917881,91962.0,91961.0,0.0077092]
[1732000188681,0.10874,91962.0,91961.0,0.0077092]
[1732000188905,0.10874,91962.0,91961.0,0.0257092]
[1732000189122,0.10874,91962.0,91961.0,0.0077092]
[1732000189588,0.10874,91962.0,91961.0,0.0017092]
[1732000190033,0.108738,91964.0,91961.0,0.0017092]
[1732000190270,0.09775675,91968.0,91961.0,0.0017092]
[1732000190492,0.09861165,91969.0,91961.0,0.0077092]
[1732000190754,0.108735,91967.0,91961.0,0.0077092]
[1732000190974,0.108735,91967.0,91961.0,0.0017092]
[1732000191198,0.108735,91967.0,91961.0,0.0037092]
[1732000191631,0.10974,91962.0,91961.0,0.0217092]
[1732000191852,0.10874,91962.0,91961.0,0.0037092]
[1732000192071,0.12909983,91962.0,91961.0,0.0037092]
[1732000192300,0.12909983,91962.0,91961.0,0.0217092]
[1732000192525,0.02035983,91962.0,91961.0,0.0217092]
[1732000192740,0.12909983,91962.0,91961.0,0.0017092]
[1732000192959,0.12909983,91962.0,91961.0,0.0077092]
[1732000193214,0.10874,91962.0,91961.0,0.0077092]